lending/lending_fUSD_20240824
["ID","MTS","AMOUNT","RATE_DAILY","PERIOD"]
[335786011,1724491832419,-23737.16126312,0.00010848,2]
[335786012,1724491832429,-348.86519469,0.00010858,2]
[335786013,1724491832439,-101672.49467095,0.00010858,2]
[335786014,1724491832474,-3909.65882905,0.00010858,2]
[335786015,1724491832483,-278.709,0.00010858,2]
[335786016,1724491832494,-5495.71068505,0.00010858,2]
[335786017,1724491832512,-2004.28931495,0.00010858,2]
[335786018,1724491832522,-531.7438359,0.00010861,2]
[335786019,1724491832531,-196.3131,0.0001089,2]
[335786020,1724491832542,-499.11574193,0.0001089,2]
[335786037,1724491838294,-2388.81570417,0.00010097,2]
[335786038,1724491838305,-529.51623645,0.00010471,2]
[335786039,1724491838315,-236.7166,0.000108,2]
[335786040,1724491838324,-1359.82051139,0.0001089,2]
[335786041,1724491838334,-3607.5151,0.000109,2]
[335786042,1724491838343,-533.01576546,0.000109,2]
[335786043,1724491838354,-1234.70017772,0.000109,2]
[335786044,1724491838370,-398.95615512,0.000109,2]
[335786045,1724491838389,-8942.42405076,0.000109,2]
[335786046,1724491838583,-13301.34632884,0.000109,2]
[335786047,1724491838595,-16792.55808578,0.000109,2]
[335786048,1724491838612,-467.14661128,0.000109,2]
[335786049,1724491838623,-15073.07401685,0.000109,2]
[335786178,1724491840333,-3621.02882917,0.000109,2]
[335786180,1724491840345,-669.44937468,0.000109,2]
[335786192,1724491840449,-5725.30060434,0.000109,2]
[335786195,1724491840459,-277.63574042,0.00010949,2]
[335786197,1724491840468,-503.53738375,0.00010958,2]
[335786199,1724491840477,-508.64200433,0.00010958,2]
[335786201,1724491840487,-301.53752919,0.00010958,2]
[335786202,1724491840496,-151.0,0.00010958,2]
[335786204,1724491840505,-500.0,0.00010958,2]
[335786206,1724491840516,-500.0,0.00010958,2]
[335786209,1724491840526,-500.0,0.00010958,2]
[335786211,1724491840536,-500.0,0.00010958,2]
[335786212,1724491840545,-500.0,0.00010958,2]
[335786213,1724491840554,-500.0,0.00010958,2]
[335786214,1724491840563,-557.20361289,0.00010958,2]
[335786215,1724491840573,-500.0,0.00010958,2]
[335786216,1724491840582,-500.0,0.00010958,2]
[335786217,1724491840591,-504.03297935,0.00010958,2]
[335786218,1724491840600,-508.69450569,0.00010958,2]
[335786219,1724491840609,-500.0,0.00010958,2]
[335786220,1724491840620,-500.0,0.00010958,2]
[335786221,1724491840629,-504.08953364,0.00010958,2]
[335786222,1724491840639,-509.46727685,0.00010958,2]
[335786223,1724491840649,-520.23657964,0.00010958,2]
[335786224,1724491840658,-500.0,0.00010958,2]
[335786225,1724491840667,-500.0,0.00010958,2]
[335786226,1724491840677,-500.0,0.00010958,2]
[335786227,1724491840685,-500.0,0.00010958,2]
[335786228,1724491840695,-500.0,0.00010958,2]
[335786229,1724491840704,-500.0,0.00010958,2]
[335786230,1724491840714,-500.0,0.00010958,2]
[335786231,1724491840723,-613.37336355,0.00010958,2]
[335786232,1724491840734,-500.0,0.00010958,2]
[335786233,1724491840744,-500.0,0.00010958,2]
[335786234,1724491840753,-500.0,0.00010958,2]
[335786235,1724491840763,-500.0,0.00010958,2]
[335786236,1724491840772,-500.0,0.00010958,2]
[335786237,1724491840781,-500.0,0.00010958,2]
[335786238,1724491840790,-500.0,0.00010958,2]
[335786239,1724491840799,-500.0,0.00010958,2]
[335786240,1724491840809,-500.0,0.00010958,2]
[335786241,1724491840819,-500.0,0.00010958,2]
[335786242,1724491840829,-500.0,0.00010958,2]
[335786243,1724491840839,-500.0,0.00010958,2]
[335786244,1724491840849,-500.0,0.00010958,2]
[335786245,1724491840859,-535.03,0.00010958,2]
[335786246,1724491840870,-500.0,0.00010958,2]
[335786248,1724491840880,-267.74,0.00010958,2]
[335786250,1724491840889,-500.0,0.00010958,2]
[335786252,1724491840899,-500.0,0.00010958,2]
[335786254,1724491840908,-500.0,0.00010958,2]
[335786256,1724491840917,-500.0,0.00010958,2]
[335786258,1724491840926,-500.0,0.00010958,2]
[335786260,1724491840936,-500.0,0.00010958,2]
[335786261,1724491840946,-500.0,0.00010958,2]
[335786262,1724491840955,-506.93189703,0.00010958,2]
[335786263,1724491840965,-500.0,0.00010958,2]
[335786264,1724491840974,-500.0,0.00010958,2]
[335786265,1724491840984,-500.0,0.00010958,2]
[335786266,1724491840994,-500.0,0.00010958,2]
[335786267,1724491841003,-502.47045458,0.00010958,2]
[335786268,1724491841013,-502.8236243,0.00010958,2]
[335786269,1724491841023,-500.0,0.00010958,2]
[335786270,1724491841033,-500.0,0.00010958,2]
[335786271,1724491841043,-500.0,0.00010958,2]
[335786272,1724491841052,-500.0,0.00010958,2]
[335786273,1724491841062,-500.0,0.00010958,2]
[335786274,1724491841072,-511.28246397,0.00010958,2]
[335786275,1724491841081,-500.0,0.00010958,2]
[335786276,1724491841090,-500.0,0.00010958,2]
[335786277,1724491841100,-500.0,0.00010958,2]
[335786278,1724491841109,-500.0,0.00010958,2]
[335786279,1724491841119,-525.1812899,0.00010958,2]
[335786280,1724491841128,-500.0,0.00010958,2]
[335786281,1724491841138,-500.0,0.00010958,2]
[335786282,1724491841147,-515.63625416,0.00010958,2]
[335786283,1724491841157,-576.39143451,0.00010958,2]
[335786284,1724491841167,-505.9755464,0.00010958,2]
[335786285,1724491841177,-500.0,0.00010958,2]
[335786286,1724491841187,-508.99183375,0.00010958,2]
[335786287,1724491841196,-500.0,0.00010958,2]
[335786288,1724491841206,-522.43252889,0.00010958,2]
[335786289,1724491841215,-500.0,0.00010958,2]
[335786290,1724491841226,-526.83167224,0.00010958,2]
[335786291,1724491841236,-454.41130624,0.00010958,2]
[335786292,1724491841246,-511.89317936,0.00010958,2]
[335786293,1724491841256,-503.89981313,0.00010958,2]
[335786294,1724491841270,-500.0,0.00010958,2]
[335786295,1724491841280,-504.0467201,0.00010958,2]
[335786296,1724491841292,-506.89422534,0.00010958,2]
[335786297,1724491841302,-500.0,0.00010958,2]
[335786298,1724491841312,-500.0,0.00010958,2]
[335786300,1724491841322,-500.0,0.00010958,2]
[335786301,1724491841332,-500.0,0.00010958,2]
[335786303,1724491841342,-523.66799325,0.00010958,2]
[335786305,1724491841351,-500.0,0.00010958,2]
[335786307,1724491841361,-503.71425705,0.00010958,2]
[335786309,1724491841371,-511.06903273,0.00010958,2]
[335786310,1724491841380,-500.0,0.00010958,2]
[335786312,1724491841389,-500.0,0.00010958,2]
[335786314,1724491841399,-500.0,0.00010958,2]
[335786316,1724491841411,-528.24304387,0.00010958,2]
[335786317,1724491841421,-516.77621069,0.00010958,2]
[335786319,1724491841430,-500.0,0.00010958,2]
[335786321,1724491841441,-500.0,0.00010958,2]
[335786323,1724491841451,-505.28001355,0.00010958,2]
[335786325,1724491841461,-500.0,0.00010958,2]
[335786327,1724491841472,-500.0,0.00010958,2]
[335786328,1724491841481,-500.0,0.00010958,2]
[335786330,1724491841491,-500.0,0.00010958,2]
[335786332,1724491841501,-500.0,0.00010958,2]
[335786334,1724491841513,-500.0,0.00010958,2]
[335786336,1724491841523,-500.0,0.00010958,2]
[335786337,1724491841532,-500.0,0.00010958,2]
[335786339,1724491841541,-212.47711235,0.00010958,2]
[335786341,1724491841550,-500.0,0.00010958,2]
[335786342,1724491841559,-500.0,0.00010958,2]
[335786344,1724491841568,-500.0,0.00010958,2]
[335786346,1724491841578,-500.0,0.00010958,2]
[335786348,1724491841587,-500.0,0.00010958,2]
[335786349,1724491841597,-504.33802208,0.00010958,2]
[335786351,1724491841607,-500.0,0.00010958,2]
[335786353,1724491841620,-376.97631426,0.00010958,2]
[335786355,1724491841630,-515.02896356,0.00010958,2]
[335786357,1724491841639,-500.0,0.00010958,2]
[335786358,1724491841648,-503.15760174,0.00010958,2]
[335786360,1724491841659,-513.40527949,0.00010958,2]
[335786362,1724491841669,-502.95009668,0.00010958,2]
[335786364,1724491841678,-506.42364393,0.00010958,2]
[335786365,1724491841688,-504.83948933,0.00010958,2]
[335786367,1724491841698,-500.0,0.00010958,2]
[335786369,1724491841708,-606.63192805,0.00010958,2]
[335786371,1724491841717,-514.66158844,0.00010958,2]
[335786373,1724491841727,-529.28684998,0.00010958,2]
[335786375,1724491841736,-503.06770411,0.00010958,2]
[335786376,1724491841746,-505.26172993,0.00010958,2]
[335786378,1724491841756,-500.0,0.00010958,2]
[335786380,1724491841767,-492.86830927,0.00010958,2]
[335786382,1724491841777,-500.0,0.00010958,2]
[335786383,1724491841787,-500.0,0.00010958,2]
[335786385,1724491841796,-534.32388242,0.00010958,2]
[335786387,1724491841807,-500.0,0.00010958,2]
[335786389,1724491841816,-500.0,0.00010958,2]
[335786391,1724491841827,-500.0,0.00010958,2]
[335786392,1724491841836,-503.27961939,0.00010958,2]
[335786394,1724491841846,-500.0,0.00010958,2]
[335786396,1724491841857,-500.0,0.00010958,2]
[335786398,1724491841867,-507.23277823,0.00010958,2]
[335786400,1724491841878,-502.4682739,0.00010958,2]
[335786401,1724491841888,-500.0,0.00010958,2]
[335786403,1724491841899,-527.90874715,0.00010958,2]
[335786405,1724491841909,-509.1972071,0.00010958,2]
[335786407,1724491841920,-513.70392331,0.00010958,2]
[335786409,1724491841930,-500.0,0.00010958,2]
[335786411,1724491841940,-500.0,0.00010958,2]
[335786413,1724491841951,-500.0,0.00010958,2]
[335786415,1724491841961,-500.0,0.00010958,2]
[335786416,1724491841970,-504.46644328,0.00010958,2]
[335786418,1724491841980,-503.68609451,0.00010958,2]
[335786420,1724491841990,-500.0,0.00010958,2]
[335786422,1724491842000,-500.0,0.00010958,2]
[335786423,1724491842009,-500.0,0.00010958,2]
[335786425,1724491842021,-500.0,0.00010958,2]
[335786427,1724491842031,-500.0,0.00010958,2]
[335786429,1724491842040,-500.0,0.00010958,2]
[335786430,1724491842050,-296.15,0.00010958,2]
[335786432,1724491842060,-504.02652196,0.00010958,2]
[335786434,1724491842069,-500.0,0.00010958,2]
[335786436,1724491842078,-506.52437871,0.00010958,2]
[335786438,1724491842088,-529.73159275,0.00010958,2]
[335786439,1724491842097,-500.0,0.00010958,2]
[335786441,1724491842107,-500.0,0.00010958,2]
[335786443,1724491842116,-347.62218424,0.00010958,2]
[335786445,1724491842125,-500.0,0.00010958,2]
[335786446,1724491842135,-506.41722912,0.00010958,2]
[335786448,1724491842145,-500.0,0.00010958,2]
[335786450,1724491842156,-528.17709291,0.00010958,2]
[335786452,1724491842167,-500.0,0.00010958,2]
[335786454,1724491842176,-261.67805037,0.00010958,2]
[335786455,1724491842185,-502.01243477,0.00010958,2]
[335786457,1724491842195,-500.0,0.00010958,2]
[335786459,1724491842204,-500.0,0.00010958,2]
[335786461,1724491842213,-502.14552431,0.00010958,2]
[335786463,1724491842223,-500.0,0.00010958,2]
[335786464,1724491842232,-500.0,0.00010958,2]
[335786466,1724491842241,-288.72,0.00010958,2]
[335786468,1724491842250,-500.0,0.00010958,2]
[335786470,1724491842260,-502.54250997,0.00010958,2]
[335786471,1724491842271,-500.0,0.00010958,2]
[335786473,1724491842280,-500.0,0.00010958,2]
[335786475,1724491842289,-500.0,0.00010958,2]
[335786477,1724491842299,-500.0,0.00010958,2]
[335786479,1724491842308,-519.22179798,0.00010958,2]
[335786480,1724491842318,-500.0,0.00010958,2]
[335786482,1724491842327,-500.0,0.00010958,2]
[335786484,1724491842336,-500.0,0.00010958,2]
[335786486,1724491842346,-500.0,0.00010958,2]
[335786487,1724491842355,-500.0,0.00010958,2]
[335786489,1724491842364,-500.0,0.00010958,2]
[335786491,1724491842374,-397.66,0.00010958,2]
[335786493,1724491842383,-500.0,0.00010958,2]
[335786495,1724491842393,-500.0,0.00010958,2]
[335786496,1724491842402,-500.0,0.00010958,2]
[335786498,1724491842411,-500.0,0.00010958,2]
[335786500,1724491842420,-500.0,0.00010958,2]
[335786502,1724491842429,-379.50114221,0.00010958,2]
[335786503,1724491842438,-513.2046153,0.00010958,2]
[335786505,1724491842447,-500.0,0.00010958,2]
[335786507,1724491842459,-555.63090449,0.00010958,2]
[335786509,1724491842469,-500.0,0.00010958,2]
[335786511,1724491842478,-500.0,0.00010958,2]
[335786513,1724491842488,-498.94837329,0.00010958,2]
[335786514,1724491842498,-500.0,0.00010958,2]
[335786516,1724491842507,-500.0,0.00010958,2]
[335786518,1724491842517,-500.0,0.00010958,2]
[335786520,1724491842527,-344.09690586,0.00010958,2]
[335786521,1724491842537,-538.00468189,0.00010958,2]
[335786523,1724491842547,-500.0,0.00010958,2]
[335786525,1724491842556,-500.0,0.00010958,2]
[335786527,1724491842566,-500.0,0.00010958,2]
[335786529,1724491842575,-512.30673835,0.00010958,2]
[335786531,1724491842585,-500.0,0.00010958,2]
[335786532,1724491842595,-500.0,0.00010958,2]
[335786534,1724491842604,-506.43383878,0.00010958,2]
[335786536,1724491842616,-519.29312995,0.00010958,2]
[335786538,1724491842626,-500.0,0.00010958,2]
[335786539,1724491842635,-500.0,0.00010958,2]
[335786541,1724491842645,-500.0,0.00010958,2]
[335786543,1724491842654,-500.0,0.00010958,2]
[335786545,1724491842664,-513.5704042,0.00010958,2]
[335786547,1724491842673,-500.0,0.00010958,2]
[335786548,1724491842683,-507.31772925,0.00010958,2]
[335786550,1724491842692,-500.0,0.00010958,2]
[335786552,1724491842702,-505.57449568,0.00010958,2]
[335786554,1724491842711,-500.0,0.00010958,2]
[335786556,1724491842721,-500.0,0.00010958,2]
[335786557,1724491842730,-501.36226293,0.00010958,2]
[335786559,1724491842739,-500.0,0.00010958,2]
[335786561,1724491842748,-500.0,0.00010958,2]
[335786563,1724491842758,-527.4892647,0.00010958,2]
[335786565,1724491842768,-500.0,0.00010958,2]
[335786566,1724491842778,-500.0,0.00010958,2]
[335786568,1724491842787,-500.56468324,0.00010958,2]
[335786570,1724491842796,-500.0,0.00010958,2]
[335786571,1724491842806,-500.0,0.00010958,2]
[335786574,1724491842815,-500.0,0.00010958,2]
[335786576,1724491842825,-500.0,0.00010958,2]
[335786577,1724491842834,-500.0,0.00010958,2]
[335786580,1724491842844,-500.0,0.00010958,2]
[335786589,1724491842978,-500.0,0.00010958,2]
[335786590,1724491842989,-500.0,0.00010958,2]
[335786591,1724491842998,-502.53178117,0.00010958,2]
[335786592,1724491843008,-474.70060558,0.00010958,2]
[335786593,1724491843018,-500.0,0.00010958,2]
[335786594,1724491843027,-500.0,0.00010958,2]
[335786595,1724491843037,-500.0,0.00010958,2]
[335786596,1724491843047,-500.0,0.00010958,2]
[335786597,1724491843056,-512.40103583,0.00010958,2]
[335786598,1724491843066,-500.0,0.00010958,2]
[335786599,1724491843075,-637.28,0.00010958,2]
[335786600,1724491843085,-501.7158013,0.00010958,2]
[335786601,1724491843094,-500.0,0.00010958,2]
[335786602,1724491843104,-500.0,0.00010958,2]
[335786603,1724491843113,-500.0,0.00010958,2]
[335786604,1724491843122,-500.0,0.00010958,2]
[335786605,1724491843131,-500.0,0.00010958,2]
[335786607,1724491843141,-500.0,0.00010958,2]
[335786609,1724491843151,-500.0,0.00010958,2]
[335786611,1724491843160,-500.0,0.00010958,2]
[335786613,1724491843169,-500.0,0.00010958,2]
[335786615,1724491843179,-503.68457206,0.00010958,2]
[335786617,1724491843188,-231.04,0.00010958,2]
[335786619,1724491843198,-623.08789178,0.00010958,2]
[335786622,1724491843207,-511.23779934,0.00010958,2]
[335786624,1724491843217,-438.74356254,0.00010958,2]
[335786626,1724491843226,-500.0,0.00010958,2]
[335786629,1724491843235,-503.40875302,0.00010958,2]
[335786630,1724491843245,-500.0,0.00010958,2]
[335786631,1724491843254,-534.51690318,0.00010958,2]
[335786632,1724491843264,-217.88872039,0.00010958,2]
[335786634,1724491843274,-150.0,0.00010958,2]
[335786636,1724491843283,-500.0,0.00010958,2]
[335786638,1724491843293,-500.0,0.00010958,2]
[335786640,1724491843303,-500.0,0.00010958,2]
[335786642,1724491843312,-500.0,0.00010958,2]
[335786643,1724491843322,-500.0,0.00010958,2]
[335786644,1724491843331,-500.75152338,0.00010958,2]
[335786645,1724491843341,-504.95673132,0.00010958,2]
[335786646,1724491843350,-514.63305452,0.00010958,2]
[335786647,1724491843362,-500.0,0.00010958,2]
[335786648,1724491843371,-519.94135875,0.00010958,2]
[335786649,1724491843381,-500.0,0.00010958,2]
[335786650,1724491843390,-500.0,0.00010958,2]
[335786651,1724491843399,-500.0,0.00010958,2]
[335786652,1724491843409,-500.0,0.00010958,2]
[335786653,1724491843418,-500.0,0.00010958,2]
[335786654,1724491843428,-500.0,0.00010958,2]
[335786655,1724491843437,-513.31865475,0.00010958,2]
[335786656,1724491843446,-500.0,0.00010958,2]
[335786657,1724491843456,-506.74123612,0.00010958,2]
[335786658,1724491843465,-500.0,0.00010958,2]
[335786659,1724491843474,-500.0,0.00010958,2]
[335786660,1724491843483,-500.0,0.00010958,2]
[335786661,1724491843493,-500.0,0.00010958,2]
[335786662,1724491843502,-500.0,0.00010958,2]
[335786663,1724491843512,-500.0,0.00010958,2]
[335786664,1724491843522,-510.95048721,0.00010958,2]
[335786665,1724491843531,-500.0,0.00010958,2]
[335786666,1724491843540,-522.79391333,0.00010958,2]
[335786667,1724491843549,-500.0,0.00010958,2]
[335786668,1724491843559,-507.86641856,0.00010958,2]
[335786669,1724491843568,-500.0,0.00010958,2]
[335786670,1724491843577,-500.0,0.00010958,2]
[335786671,1724491843587,-500.0,0.00010958,2]
[335786672,1724491843596,-500.0,0.00010958,2]
[335786673,1724491843606,-500.0,0.00010958,2]
[335786674,1724491843617,-500.0,0.00010958,2]
[335786675,1724491843627,-500.0,0.00010958,2]
[335786676,1724491843636,-500.0,0.00010958,2]
[335786677,1724491843647,-500.0,0.00010958,2]
[335786678,1724491843656,-500.0,0.00010958,2]
[335786679,1724491843665,-339.42895995,0.00010958,2]
[335786681,1724491843675,-500.0,0.00010958,2]
[335786683,1724491843687,-500.0,0.00010958,2]
[335786685,1724491843696,-500.0,0.00010958,2]
[335786687,1724491843705,-500.0,0.00010958,2]
[335786689,1724491843715,-500.0,0.00010958,2]
[335786691,1724491843724,-543.75677872,0.00010958,2]
[335786693,1724491843733,-500.0,0.00010958,2]
[335786696,1724491843742,-632.34755105,0.00010958,2]
[335786699,1724491843752,-500.0,0.00010958,2]
[335786701,1724491843761,-500.0,0.00010958,2]
[335786703,1724491843770,-506.42284819,0.00010958,2]
[335786705,1724491843780,-500.0,0.00010958,2]
[335786706,1724491843789,-500.0,0.00010958,2]
[335786708,1724491843798,-500.0,0.00010958,2]
[335786710,1724491843808,-500.0,0.00010958,2]
[335786712,1724491843817,-500.0,0.00010958,2]
[335786714,1724491843826,-503.54191023,0.00010958,2]
[335786716,1724491843835,-500.0,0.00010958,2]
[335786718,1724491843845,-500.0,0.00010958,2]
[335786720,1724491843854,-500.0,0.00010958,2]
[335786722,1724491843863,-243.26926321,0.00010958,2]
[335786724,1724491843873,-548.84705011,0.00010958,2]
[335786726,1724491843882,-500.0,0.00010958,2]
[335786728,1724491843892,-500.0,0.00010958,2]
[335786730,1724491843901,-500.0,0.00010958,2]
[335786732,1724491843910,-500.0,0.00010958,2]
[335786734,1724491843919,-500.0,0.00010958,2]
[335786736,1724491843928,-500.0,0.00010958,2]
[335786738,1724491843937,-500.0,0.00010958,2]
[335786740,1724491843947,-500.0,0.00010958,2]
[335786742,1724491843956,-521.64228689,0.00010958,2]
[335786744,1724491843965,-500.0,0.00010958,2]
[335786746,1724491843975,-500.0,0.00010958,2]
[335786748,1724491843985,-500.0,0.00010958,2]
[335786750,1724491843994,-500.0,0.00010958,2]
[335786752,1724491844003,-500.0,0.00010958,2]
[335786754,1724491844014,-168.72058574,0.00010958,2]
[335786756,1724491844023,-522.96992322,0.00010958,2]
[335786758,1724491844032,-506.22771702,0.00010958,2]
[335786760,1724491844042,-500.0,0.00010958,2]
[335786761,1724491844051,-500.0,0.00010958,2]
[335786763,1724491844061,-500.0,0.00010958,2]
[335786765,1724491844071,-514.58871714,0.00010958,2]
[335786767,1724491844080,-500.0,0.00010958,2]
[335786770,1724491844090,-500.0,0.00010958,2]
[335786772,1724491844100,-508.58882095,0.00010958,2]
[335786774,1724491844109,-500.0,0.00010958,2]
[335786776,1724491844119,-497.68353629,0.00010958,2]
[335786778,1724491844132,-500.0,0.00010958,2]
[335786780,1724491844142,-505.2994805,0.00010958,2]
[335786782,1724491844153,-500.0,0.00010958,2]
[335786784,1724491844164,-500.0,0.00010958,2]
[335786786,1724491844174,-171.28878888,0.00010958,2]
[335786788,1724491844184,-501.22788151,0.00010958,2]
[335786790,1724491844194,-477.61291276,0.00010958,2]
[335786792,1724491844203,-500.0,0.00010958,2]
[335786794,1724491844213,-513.74644521,0.00010958,2]
[335786796,1724491844223,-536.26016262,0.00010958,2]
[335786798,1724491844232,-500.0,0.00010958,2]
[335786800,1724491844242,-500.0,0.00010958,2]
[335786802,1724491844252,-500.0,0.00010958,2]
[335786803,1724491844261,-500.0,0.00010958,2]
[335786805,1724491844270,-500.0,0.00010958,2]
[335786807,1724491844280,-500.0,0.00010958,2]
[335786809,1724491844290,-500.0,0.00010958,2]
[335786811,1724491844299,-500.0,0.00010958,2]
[335786813,1724491844309,-500.0,0.00010958,2]
[335786815,1724491844318,-500.0,0.00010958,2]
[335786817,1724491844327,-515.89559419,0.00010958,2]
[335786819,1724491844336,-500.0,0.00010958,2]
[335786821,1724491844346,-362.94750225,0.00010958,2]
[335786823,1724491844355,-528.28002081,0.00010958,2]
[335786825,1724491844365,-500.0,0.00010958,2]
[335786827,1724491844375,-500.0,0.00010958,2]
[335786829,1724491844386,-506.54145083,0.00010958,2]
[335786831,1724491844395,-500.0,0.00010958,2]
[335786833,1724491844405,-500.0,0.00010958,2]
[335786835,1724491844416,-500.0,0.00010958,2]
[335786838,1724491844426,-500.0,0.00010958,2]
[335786840,1724491844436,-505.38888972,0.00010958,2]
[335786841,1724491844445,-510.44927849,0.00010958,2]
[335786844,1724491844455,-520.44556324,0.00010958,2]
[335786846,1724491844464,-500.0,0.00010958,2]
[335786848,1724491844474,-500.0,0.00010958,2]
[335786849,1724491844483,-500.0,0.00010958,2]
[335786851,1724491844493,-524.99988682,0.00010958,2]
[335786854,1724491844503,-500.0,0.00010958,2]
[335786855,1724491844513,-500.0,0.00010958,2]
[335786858,1724491844523,-500.0,0.00010958,2]
[335786860,1724491844532,-500.0,0.00010958,2]
[335786862,1724491844541,-500.0,0.00010958,2]
[335786863,1724491844551,-500.0,0.00010958,2]
[335786865,1724491844560,-434.31982955,0.00010958,2]
[335786867,1724491844569,-506.74447427,0.00010958,2]
[335786870,1724491844579,-502.41381342,0.00010958,2]
[335786872,1724491844588,-500.0,0.00010958,2]
[335786874,1724491844598,-500.0,0.00010958,2]
[335786875,1724491844607,-500.0,0.00010958,2]
[335786877,1724491844621,-500.0,0.00010958,2]
[335786879,1724491844630,-500.0,0.00010958,2]
[335786881,1724491844640,-515.60566432,0.00010958,2]
[335786883,1724491844650,-500.0,0.00010958,2]
[335786885,1724491844659,-508.95447681,0.00010958,2]
[335786887,1724491844668,-514.83530029,0.00010958,2]
[335786889,1724491844678,-500.0,0.00010958,2]
[335786891,1724491844688,-506.31079759,0.00010958,2]
[335786893,1724491844698,-486.32582685,0.00010958,2]
[335786895,1724491844708,-500.0,0.00010958,2]
[335786897,1724491844719,-506.158391,0.00010958,2]
[335786900,1724491844731,-500.0,0.00010958,2]
[335786902,1724491844742,-508.08931413,0.00010958,2]
[335786904,1724491844752,-525.74346299,0.00010958,2]
[335786906,1724491844763,-311.53703751,0.00010958,2]
[335786908,1724491844772,-500.0,0.00010958,2]
[335786910,1724491844782,-528.09603176,0.00010958,2]
[335786912,1724491844791,-509.24585887,0.00010958,2]
[335786914,1724491844800,-389.05895254,0.00010958,2]
[335786915,1724491844810,-500.0,0.00010958,2]
[335786917,1724491844820,-504.75390698,0.00010958,2]
[335786919,1724491844829,-525.65213034,0.00010958,2]
[335786921,1724491844839,-500.0,0.00010958,2]
[335786923,1724491844849,-500.0,0.00010958,2]
[335786925,1724491844859,-500.0,0.00010958,2]
[335786927,1724491844869,-500.0,0.00010958,2]
[335786929,1724491844880,-626.47321145,0.00010958,2]
[335786931,1724491844890,-503.33233351,0.00010958,2]
[335786933,1724491844899,-500.0,0.00010958,2]
[335786935,1724491844909,-500.0,0.00010958,2]
[335786937,1724491844920,-500.0,0.00010958,2]
[335786939,1724491844931,-500.0,0.00010958,2]
[335786941,1724491844940,-508.82074473,0.00010958,2]
[335786943,1724491844950,-500.0,0.00010958,2]
[335786944,1724491844959,-500.0,0.00010958,2]
[335786945,1724491844969,-508.17083778,0.00010958,2]
[335786946,1724491844979,-500.0,0.00010958,2]
[335786947,1724491844989,-513.10462293,0.00010958,2]
[335786948,1724491844999,-500.0,0.00010958,2]
[335786949,1724491845008,-500.0,0.00010958,2]
[335786950,1724491845019,-514.42694306,0.00010958,2]
[335786951,1724491845029,-510.10428464,0.00010958,2]
[335786952,1724491845038,-500.0,0.00010958,2]
[335786953,1724491845048,-500.0,0.00010958,2]
[335786954,1724491845058,-500.0,0.00010958,2]
[335786955,1724491845068,-500.0,0.00010958,2]
[335786956,1724491845078,-400.0,0.00010958,2]
[335786957,1724491845087,-500.0,0.00010958,2]
[335786958,1724491845096,-500.0,0.00010958,2]
[335786959,1724491845106,-500.0,0.00010958,2]
[335786960,1724491845116,-500.0,0.00010958,2]
[335786961,1724491845125,-500.0,0.00010958,2]
[335786962,1724491845134,-500.0,0.00010958,2]
[335786963,1724491845144,-500.0,0.00010958,2]
[335786964,1724491845153,-204.6505699,0.00010958,2]
[335786965,1724491845163,-500.0,0.00010958,2]
[335786966,1724491845173,-500.0,0.00010958,2]